fUST/lending_fUST_20251023
["ID","MTS","AMOUNT","RATE_DAILY","PERIOD"]
[392092727,1761151838658,-161.852,0.00023505,4]
[392092728,1761151838668,-1382.878305,0.0002351,2]
[392092729,1761151838678,-1745.14104451,0.00024621,2]
[392092730,1761151838688,-151.0,0.000249,7]
[392092731,1761151838699,-151.0,0.000249,7]
[392092732,1761151838709,-151.0,0.000249,7]
[392092733,1761151838719,-245118.87381,0.000249,2]
[392092734,1761151838729,-50000.0,0.00024962,2]
[392092735,1761151838740,-151.0,0.00024962,7]
[392092736,1761151838750,-151.0,0.00024962,7]
[392092737,1761151838760,-151.0,0.00024962,7]
[392092738,1761151838770,-970.278972,0.00024962,7]
[392092739,1761151838780,-500.0,0.00024973,2]
[392092740,1761151838790,-500.0,0.00024973,2]
[392092741,1761151838801,-500.0,0.00024973,2]
[392092742,1761151838811,-530.92815591,0.00024973,2]
[392092743,1761151838821,-500.0,0.00024973,2]
[392092744,1761151838831,-500.0,0.00024973,2]
[392092745,1761151838841,-500.0,0.00024973,2]
[392092746,1761151838851,-151.0,0.0002499,7]
[392092747,1761151838862,-151.0,0.0002499,7]
[392092748,1761151838873,-151.0,0.0002499,7]
[392092749,1761151838884,-35016.9819729,0.0002499,2]
[392092750,1761151838895,-151.0,0.0002499,7]
[392092751,1761151838905,-13909.57113446,0.00025,8]
[392092856,1761151846856,-151.0,0.0002499,7]
[392092858,1761151846865,-278.840533,0.0002499,7]
[392092859,1761151846875,-157.6394736,0.0002499,7]
[392092864,1761151923221,500.0,0.00023504,2]
[392092865,1761151923248,500.0,0.00023504,2]
[392092866,1761151923310,500.0,0.00023504,2]
[392092867,1761151923359,500.0,0.00023504,2]
[392092868,1761151923421,521.47842333,0.00023504,2]
[392092869,1761151924584,500.0,0.00023504,2]
[392092870,1761151930894,500.0,0.00023504,2]
[392092871,1761151930923,454.87608076,0.00023504,2]
[392092872,1761151930952,500.0,0.00023504,2]
[392092873,1761151930983,500.0,0.00023504,2]
[392092874,1761151931009,409.84979979,0.00023504,2]
[392092875,1761151931033,500.0,0.00023504,2]
[392092876,1761151931060,500.0,0.00023504,2]
[392092877,1761151931088,500.0,0.00023504,2]
[392092878,1761151931114,500.0,0.00023504,2]
[392092879,1761151946157,500.0,0.00023504,2]
[392092880,1761151946184,500.0,0.00023504,2]
[392092881,1761151946213,500.0,0.00023504,2]
[392092882,1761151946244,500.0,0.00023504,2]
[392092883,1761151946284,500.0,0.00023504,2]
[392092884,1761151946319,507.94063393,0.00023504,2]
[392092885,1761151946347,500.0,0.00023504,2]
[392092886,1761151946376,500.0,0.00023504,2]
[392092887,1761151946403,500.0,0.00023504,2]
[392092888,1761151946431,500.0,0.00023504,2]
[392092889,1761151946457,250.0,0.00023504,2]
[392092890,1761151946482,500.0,0.00023504,2]
[392092891,1761151946509,500.0,0.00023504,2]
[392092892,1761151946537,500.0,0.00023504,2]
[392092893,1761151946564,500.0,0.00023504,2]
[392092894,1761151961915,500.0,0.00023504,2]
[392092895,1761151961942,500.0,0.00023504,2]
[392092896,1761151961969,500.0,0.00023504,2]
[392092897,1761151961995,500.0,0.00023504,2]
[392092898,1761151962029,500.0,0.00023504,2]
[392092899,1761151962173,500.0,0.00023504,2]
[392092900,1761151962203,500.0,0.00023504,2]
[392092901,1761151962230,500.0,0.00023504,2]
[392092902,1761151962268,500.0,0.00023504,2]
[392092903,1761151962298,500.0,0.00023504,2]
[392092904,1761151962325,300.0,0.00023504,2]
[392092905,1761151980682,500.0,0.00023504,2]
[392092906,1761151980711,500.0,0.00023504,2]
[392092907,1761151980743,500.0,0.00023504,2]
[392092908,1761151980774,500.0,0.00023504,2]
[392092909,1761151980800,500.0,0.00023504,2]
[392092910,1761151980831,500.0,0.00023504,2]
[392092911,1761151980860,340.59870652,0.00023504,2]
[392092912,1761151980887,500.0,0.00023504,2]
[392092913,1761151980918,500.0,0.00023504,2]
[392092914,1761151980944,359.41129348,0.00023504,2]
[392092915,1761151980966,140.58870652,0.00023504,2]
[392092916,1761151980993,500.0,0.00023504,2]
[392092917,1761151981023,500.0,0.00023504,2]
[392092918,1761151981052,500.0,0.00023504,2]
[392092919,1761151981086,500.0,0.00023504,2]
[392092920,1761151981113,500.0,0.00023504,2]
[392092921,1761151981145,500.0,0.00023504,2]
[392092922,1761151981175,500.0,0.00023504,2]
[392092923,1761151981278,500.0,0.00023504,2]
[392092924,1761151981314,279.72083583,0.00023504,2]
[392092925,1761151981356,500.0,0.00023504,2]
[392092926,1761151981394,500.0,0.00023504,2]
[392092927,1761151981433,500.0,0.00023504,2]
[392092928,1761151996033,500.0,0.00023504,2]
[392092929,1761151996068,317.31733443,0.00023504,2]
[392092930,1761151996101,500.0,0.00023504,2]
[392092931,1761151996144,500.0,0.00023504,2]
[392092932,1761151996198,500.0,0.00023504,2]
[392092933,1761151996251,500.0,0.00023504,2]
[392092934,1761151996314,500.0,0.00023504,2]
[392092935,1761152037015,500.0,0.00023504,2]
[392092936,1761152037306,500.0,0.00023504,2]
[392092937,1761152037553,513.0213378,0.00023504,2]
[392092938,1761152053619,1619.8918408,0.00023701,2]
[392092939,1761152112943,5000.0,0.00023701,2]
[392092940,1761152121030,500.0,0.00023504,2]
[392092941,1761152121288,2880.1181592,0.00023701,2]
[392092942,1761152121313,499.99,0.00023701,2]
[392092943,1761152122641,500.0,0.00023504,2]
[392092944,1761152122956,500.0,0.00023504,2]
[392092945,1761152123217,500.0,0.00023504,2]
[392092946,1761152123477,500.0,0.00023504,2]
[392092947,1761152123719,311.46642737,0.00023504,2]
[392092948,1761152137244,5000.0,0.00023701,2]
[392092949,1761152145590,5000.0,0.00023701,2]
[392092950,1761152168434,1619.9118408,0.00023699,2]
[392092951,1761152240338,199.721,0.0003,120]
[392092952,1761152263760,500.0,0.00023504,2]
[392092953,1761152264003,500.0,0.00023504,2]
[392092954,1761152264259,500.0,0.00023504,2]
[392092955,1761152264509,484.3866748,0.00023504,2]
[392092957,1761152353252,5000.0,0.00023753,2]
[392092958,1761152375163,5000.0,0.00023753,2]
[392092959,1761152396882,0.01,0.00023753,2]
[392092960,1761152396910,4999.99,0.00023753,2]
[392092961,1761152407548,500.0,0.00035483,30]
[392092962,1761152408712,500.0,0.00035483,30]
[392092963,1761152409378,500.0,0.00035483,30]
[392092964,1761152409979,500.0,0.00035483,30]
[392092965,1761152410627,500.0,0.00035483,30]
[392092966,1761152411023,7999.0,0.00035483,30]
[392092967,1761152411265,500.0,0.00035483,30]
[392092968,1761152411871,500.0,0.00035483,30]
[392092971,1761152527943,1688.16335893,0.00023582,2]
[392092972,1761152556127,1599.67,0.00021383,2]
[392092973,1761152556446,1712.18664107,0.00023327,2]
[392092974,1761152556473,1487.16335893,0.00023327,2]
[392092975,1761152610507,5000.0,0.00023753,2]
[392092976,1761152632472,3512.84664107,0.00023753,2]
[392092977,1761152632495,1487.15335893,0.00023753,2]
[392092978,1761152633215,1538.59,0.00021561,2]
[392092979,1761152633611,3077.19,0.00023521,2]
[392092982,1761152646971,225.6786667,0.00023042,2]
[392092983,1761152654351,5000.0,0.00023753,2]
[392092984,1761152670359,4774.3313333,0.00023753,2]
[392092985,1761152678128,5000.0,0.00023711,2]
[392092986,1761152700154,156.23506248,0.00023706,2]
[392092987,1761152709805,600.17456844,0.00035483,30]
[392092988,1761152712227,1479.85,0.00021502,2]
[392092989,1761152712667,2959.7,0.00023456,2]
[392092990,1761152791716,1423.34,0.00021546,2]
[392092991,1761152792647,2846.69,0.00023505,2]
[392092993,1761152849566,681.426152,0.00013699,2]
[392092994,1761152849773,452.76878552,0.00020187,2]
[392092995,1761152849795,228.65736648,0.00020187,2]
[392092996,1761152864319,225.6686667,0.00023706,2]
[392092997,1761152871182,1369.0,0.0002153,2]
[392092998,1761152871595,2738.0,0.00023488,2]
[392092999,1761152880881,278.72,0.00015135,2]
[392093000,1761152951827,1316.73,0.0002145,2]
[392093001,1761152952234,2633.46,0.000234,2]
[392093029,1761152972356,403.7088181,0.00023673,2]
[392093056,1761153031812,-1200.0,0.00023771,2]
[392093058,1761153031822,-1200.0,0.00023771,2]
[392093060,1761153031831,-300.0,0.00023772,2]
[392093062,1761153031840,-300.0,0.00023772,2]
[392093064,1761153031849,-300.0,0.00023772,2]
[392093066,1761153031859,-300.0,0.00023772,2]
[392093068,1761153031869,-50000.0,0.00023773,2]
[392093070,1761153031878,-500.0,0.00023773,2]
[392093072,1761153031888,-500.0,0.00023773,2]
[392093074,1761153031898,-500.0,0.00023773,2]
[392093076,1761153031907,-500.0,0.00023773,2]
[392093078,1761153031917,-261.14189334,0.00023773,2]
[392093080,1761153031927,-200.0,0.00023773,2]
[392093082,1761153031936,-156.35398593,0.000238,2]
[392093084,1761153031945,-739.67481589,0.00023852,2]
[392093085,1761153031954,-1104.0,0.0002399,2]
[392093087,1761153031964,-197.0,0.00023991,2]
[392093089,1761153031974,-1331.4146686,0.00023994,2]
[392093091,1761153031986,-500.0,0.00024065,2]
[392093092,1761153031995,-500.0,0.00024065,2]
[392093094,1761153032004,-335.71982481,0.00024065,2]
[392093095,1761153032018,-371.17763406,0.00024065,2]
[392093096,1761153032027,-549.54718955,0.00024065,2]
[392093098,1761153032036,-479.70192605,0.00024065,2]
[392093099,1761153032046,-647.74675954,0.00024065,2]
[392093101,1761153032055,-1688.16335893,0.00024066,2]
[392093104,1761153032064,-179.6759523,0.00024077,2]
[392093105,1761153032074,-197.0,0.00024093,2]
[392093107,1761153032083,-176.0,0.00024189,2]
[392093109,1761153032093,-236.72,0.00024247,10]
[392093111,1761153032102,-163.939,0.00024256,6]
[392093113,1761153032112,-2517.9181993,0.00024257,2]
[392093116,1761153032121,-38343.008047,0.00024257,2]
[392093118,1761153032131,-176.0,0.00024258,2]
[392093119,1761153032140,-1688.16335893,0.00024258,2]
[392093121,1761153032149,-500.0,0.00024273,2]
[392093123,1761153032158,-2366.95941084,0.00024318,2]
[392093125,1761153032168,-273.0,0.00024325,2]
[392093127,1761153032177,-176.0,0.00024329,2]
[392093129,1761153032186,-176.0,0.000244,2]
[392093132,1761153032195,-160.0,0.000245,2]
[392093134,1761153032205,-631.2413088,0.000245,3]
[392093136,1761153032214,-1688.16335893,0.0002452,2]
[392093138,1761153032224,-685.46237877,0.00024558,2]
[392093140,1761153032234,-650.38,0.00024636,2]
[392093141,1761153032243,-3698.37407944,0.00024642,2]
[392093144,1761153032253,-198.34521772,0.00024658,2]
[392093146,1761153032262,-2524.96523519,0.00024719,3]
[392093147,1761153032272,-500.0,0.00024719,3]
[392093149,1761153032281,-273.0,0.00024743,2]
[392093151,1761153032291,-718.70380921,0.00024756,2]
[392093153,1761153032300,-176.0,0.00024763,2]
[392093155,1761153032309,-273.0,0.00024763,2]
[392093157,1761153032319,-189.95775313,0.000248,2]
[392093159,1761153032328,-273.19499781,0.000248,2]
[392093161,1761153032337,-1311.34439515,0.000248,2]
[392093163,1761153032346,-1000.0,0.00024821,2]
[392093165,1761153032356,-176.0,0.00024828,2]
[392093167,1761153032366,-1688.16335894,0.00024839,2]
[392093169,1761153032375,-176.0,0.00024843,2]
[392093171,1761153032384,-283.0,0.00024867,2]
[392093173,1761153032394,-189.95775313,0.0002488,2]
[392093175,1761153032403,-2279.49303756,0.0002489,2]
[392093177,1761153032413,-327.86389273,0.00024899,2]
[392093179,1761153032421,-336388.70627138,0.000249,2]
[392093201,1761153032626,1266.45,0.00021714,2]
[392093209,1761153032690,2532.91,0.00023688,2]
[392093335,1761153035786,-701.3920673,0.000249,2]
[392093349,1761153037750,-32909.90166132,0.000249,2]
[392093350,1761153037760,-151.0,0.000249,7]
[392093351,1761153037770,-161.342763,0.000249,7]
[392093352,1761153037779,-151.0,0.000249,7]
[392093353,1761153037788,-151.0,0.000249,7]
[392093354,1761153037798,-151.0,0.000249,7]
[392093355,1761153037807,-213.064744,0.000249,7]
[392093356,1761153037816,-107474.62933464,0.000249,2]
[392093357,1761153037838,-2044.00225882,0.000249,2]
[392093418,1761153046054,-1404.0,0.000249,2]
[392093422,1761153060373,6200.65,0.00023288,30]
[392093423,1761153060397,10000.01,0.00023288,30]
[392093424,1761153060418,10000.01,0.00023288,30]
[392093425,1761153060439,10000.01,0.00023288,30]
[392093426,1761153060466,8710.4612377,0.00023288,30]
[392093427,1761153110818,1218.1,0.00021385,2]
[392093428,1761153111779,2436.19,0.00023329,2]
[392093430,1761153191478,1171.59,0.00021272,2]
[392093431,1761153191886,2343.18,0.00023206,2]
[392093432,1761153210566,744.51717417,0.00035465,30]
[392093433,1761153271719,1126.85,0.00021407,2]
[392093434,1761153271981,2000.0,0.00030136,120]
[392093435,1761153272121,2253.71,0.00023353,2]
[392093436,1761153351324,1083.83,0.00021501,2]
[392093437,1761153351755,2167.66,0.00023455,2]
[392093438,1761153430300,1042.45,0.000215,2]
[392093439,1761153430701,2084.89,0.00023455,2]
[392093440,1761153509821,1002.64,0.00021442,2]
[392093441,1761153510232,2005.29,0.00023392,2]
[392093442,1761153589378,964.36,0.00021409,2]
[392093443,1761153589778,1928.72,0.00023355,2]
[392093444,1761153597265,691.439153,0.00023133,2]
[392093445,1761153642782,5000.0,0.00023501,2]
[392093446,1761153664859,5000.0,0.00023501,2]
[392093447,1761153668478,927.54,0.00021251,2]
[392093448,1761153668900,1855.08,0.00023183,2]
[392093450,1761153687613,5000.0,0.00023501,2]
[392093451,1761153710412,5000.0,0.00023501,2]
[392093452,1761153732554,5000.0,0.00023501,2]
[392093453,1761153748148,892.13,0.00021584,2]
[392093454,1761153754718,5000.0,0.00023501,2]
[392093455,1761153827784,880.77,0.00021578,2]
[392093457,1761153909172,869.56,0.00021526,2]
[392093458,1761153909572,1739.12,0.00023483,2]
[392093459,1761153940766,666.0,0.00022996,2]
[392093477,1761153988460,836.36,0.00021581,2]
[392093479,1761154070235,825.72,0.00021598,2]
[392093480,1761154070411,253.70477863,0.000209,2]
[392093481,1761154070521,8920.58522137,0.00018,2]
[392093482,1761154070546,10000.01,0.00018,2]
[392093483,1761154070576,11398.41611193,0.00018,2]
[392093485,1761154101924,274.26295846,0.00021,2]
[392093486,1761154102484,1008.44883103,0.00015,2]
[392093488,1761154117514,10773.23019842,0.00035477,30]
[392093490,1761154119033,5041.42240336,0.00035477,30]
[392093491,1761154123707,5157.66206573,0.00035477,30]
[392093501,1761154149154,815.21,0.00021534,2]
[392093512,1761154149573,1630.41,0.00023491,2]
[392093524,1761154231122,784.08,0.00021672,2]
[392093543,1761154231948,-1568.16,0.00023642,2]
[392093545,1761154231958,-500.0,0.00023791,6]
[392093547,1761154231968,-230.48941671,0.00023791,6]
[392093551,1761154232006,-269.51058329,0.00023791,6]
[392093553,1761154232015,-500.0,0.00023791,6]
[392093555,1761154232025,-500.0,0.00023791,6]
[392093557,1761154232035,-500.0,0.00023791,6]
[392093559,1761154232045,-500.0,0.00023791,6]
[392093561,1761154232054,-1200.0,0.00023848,2]
[392093563,1761154232065,-300.0,0.00023848,2]
[392093565,1761154232075,-300.0,0.00023848,2]
[392093567,1761154232084,-1200.0,0.00023848,2]
[392093569,1761154232094,-300.0,0.00023848,2]
[392093570,1761154232103,-292.16202918,0.00023873,2]
[392093572,1761154232113,-526.55,0.0002388,10]
[392093574,1761154232122,-438.79,0.0002388,10]
[392093575,1761154232132,-365.66,0.0002388,10]
[392093576,1761154232143,-28635.46718106,0.00023889,2]
[392093597,1761154237776,-740.10190463,0.00023889,2]
[392093598,1761154237786,-500.0,0.00023889,2]
[392093599,1761154237795,-500.0,0.00023889,2]
[392093600,1761154237805,-500.0,0.00023889,2]
[392093601,1761154237814,-500.0,0.00023889,2]
[392093602,1761154237823,-500.0,0.00023889,2]
[392093604,1761154237833,-740.10190463,0.00023889,2]
[392093606,1761154237843,-500.0,0.00023889,2]
[392093608,1761154237852,-740.10190463,0.00023889,2]
[392093610,1761154237862,-500.0,0.00023889,2]
[392093612,1761154237871,-500.0,0.00023889,2]
[392093614,1761154237881,-500.0,0.00023889,2]
[392093616,1761154237891,-740.10190463,0.00023889,2]
[392093618,1761154237905,-579.0785485,0.00023889,2]
[392093620,1761154237915,-194.33230089,0.00023889,2]
[392093622,1761154237924,-500.0,0.00023889,2]
[392093624,1761154237934,-740.10190463,0.00023889,2]
[392093625,1761154237946,-450.06382533,0.00023889,2]
[392093626,1761154237955,-500.0,0.00023889,2]
[392093627,1761154237964,-500.0,0.00023889,2]
[392093628,1761154237975,-740.10190463,0.00023889,2]
[392093629,1761154237985,-218.63357132,0.00023889,2]
[392093630,1761154238000,-148.5028594,0.00023889,2]
[392093631,1761154238009,-740.10190463,0.00023889,2]
[392093632,1761154238018,-500.0,0.00023889,2]
[392093633,1761154238028,-740.10190463,0.00023889,2]
[392093634,1761154238037,-500.0,0.00023889,2]
[392093635,1761154238047,-740.10190463,0.00023889,2]
[392093636,1761154238057,-740.10190463,0.00023889,2]
[392093637,1761154238067,-500.0,0.00023889,2]
[392093638,1761154238076,-500.0,0.00023889,2]
[392093639,1761154238086,-740.10190463,0.00023889,2]
[392093640,1761154238096,-740.10190463,0.00023889,2]
[392093641,1761154238106,-500.0,0.00023889,2]
[392093642,1761154238115,-340.54915929,0.00023889,2]
[392093643,1761154238126,-740.10190463,0.00023889,2]
[392093644,1761154238136,-740.10190463,0.00023889,2]
[392093645,1761154238147,-740.10190463,0.00023889,2]
[392093646,1761154238157,-740.10190463,0.00023889,2]
[392093647,1761154238167,-740.10190463,0.00023889,2]
[392093648,1761154238178,-740.10190463,0.00023889,2]
[392093649,1761154238189,-740.10190463,0.00023889,2]
[392093650,1761154238199,-321.00155422,0.00023889,2]
[392093687,1761154240083,-419.10035041,0.00023889,2]
[392093689,1761154240094,-740.10190463,0.00023889,2]
[392093691,1761154240104,-740.10190463,0.00023889,2]
[392093693,1761154240114,-740.10190463,0.00023889,2]
[392093695,1761154240124,-740.10190463,0.00023889,2]
[392093697,1761154240134,-740.10190463,0.00023889,2]
[392093699,1761154240144,-408.22483923,0.00023889,2]
[392093828,1761154244069,-331.8770654,0.00023889,2]
[392093829,1761154244091,-740.10190463,0.00023889,2]
[392093830,1761154244114,-740.10190463,0.00023889,2]
[392093831,1761154244135,-740.10190463,0.00023889,2]
[392093832,1761154244158,-740.10190463,0.00023889,2]
[392093833,1761154244183,-740.10190463,0.00023889,2]
[392093834,1761154244204,-740.10190463,0.00023889,2]
[392093835,1761154244227,-740.10190463,0.00023889,2]
[392093836,1761154244250,-740.10190463,0.00023889,2]
[392093837,1761154244274,-740.10190463,0.00023889,2]
[392093838,1761154244298,-740.10190463,0.00023889,2]
[392093839,1761154244322,-740.10190463,0.00023889,2]
[392093840,1761154244344,-740.10190463,0.00023889,2]
[392093841,1761154244367,-740.10190463,0.00023889,2]
[392093842,1761154244390,-740.10190463,0.00023889,2]
[392093843,1761154244413,-740.10190463,0.00023889,2]
[392093844,1761154244436,-740.10190463,0.00023889,2]
[392093845,1761154244459,-740.10190463,0.00023889,2]
[392093846,1761154244483,-740.10190463,0.00023889,2]
[392093847,1761154244506,-740.10190463,0.00023889,2]
[392093848,1761154244528,-740.10190463,0.00023889,2]
[392093849,1761154244551,-740.10190463,0.00023889,2]
[392093850,1761154244573,-740.10190463,0.00023889,2]
[392093851,1761154244596,-740.10190463,0.00023889,2]
[392093852,1761154244618,-740.10190463,0.00023889,2]
[392093853,1761154244641,-740.10190463,0.00023889,2]
[392093854,1761154244663,-740.10190463,0.00023889,2]
[392093855,1761154244686,-740.10190463,0.00023889,2]
[392093856,1761154244708,-740.10190463,0.00023889,2]
[392093857,1761154244731,-740.10190463,0.00023889,2]
[392093858,1761154244755,-740.10190463,0.00023889,2]
[392093859,1761154244778,-740.10190463,0.00023889,2]
[392093860,1761154244801,-740.10190463,0.00023889,2]
[392093861,1761154244824,-740.10190463,0.00023889,2]
[392093862,1761154244845,-740.10190463,0.00023889,2]
[392093863,1761154244867,-740.10190463,0.00023889,2]
[392093864,1761154244889,-740.10190463,0.00023889,2]
[392093865,1761154244916,-740.10190463,0.00023889,2]
[392093866,1761154244940,-740.10190463,0.00023889,2]
[392093867,1761154244962,-740.10190463,0.00023889,2]
[392093868,1761154244985,-740.10190463,0.00023889,2]
[392093869,1761154245008,-740.10190463,0.00023889,2]
[392093870,1761154245030,-740.10190463,0.00023889,2]
[392093871,1761154245053,-740.10190463,0.00023889,2]
[392093872,1761154245075,-500.0,0.0002389,2]
[392093873,1761154245097,-163.94,0.00023891,5]
[392093874,1761154245121,-258.01749793,0.00024064,2]
[392093875,1761154245143,-250.0,0.00024119,2]
[392093876,1761154245166,-24588.27296434,0.00024142,2]
[392093877,1761154245188,-693.67,0.00024147,3]
[392093878,1761154245211,-346.84,0.00024147,3]
[392093879,1761154245235,-173.42,0.00024147,3]
[392093880,1761154245257,-520.27,0.00024147,3]
[392093881,1761154245279,-403.01,0.00024147,3]
[392093882,1761154245300,-201.51,0.00024147,3]
[392093883,1761154245321,-604.54,0.00024147,3]
[392093884,1761154245343,-339.84,0.00024147,3]
[392093885,1761154245367,-2598.95,0.00024147,10]
[392093886,1761154245390,-229.50472491,0.00024156,2]
[392093887,1761154245413,-135971.95584833,0.00024157,2]
[392093899,1761154274666,1048.0345843,0.00023156,2]
[392093900,1761154311644,754.14,0.00021498,2]
[392093901,1761154312089,1508.29,0.00023453,2]
[392093909,1761154391975,743.73,0.00021424,2]
[392093910,1761154392354,1487.45,0.00023372,2]
[392093911,1761154470482,182.474838,0.00022889,2]
[392093912,1761154471497,715.33,0.00021422,2]
[392093913,1761154471801,1430.66,0.00023369,2]
[392093914,1761154550886,688.02,0.00021445,2]
[392093915,1761154551292,1376.04,0.00023395,2]
[392093916,1761154630207,661.75,0.00021447,2]
[392093917,1761154630603,1323.5,0.00023397,2]
[392093918,1761154709222,636.48,0.00021366,2]
[392093919,1761154709619,754.575162,0.00023308,2]
[392093920,1761154709642,518.384838,0.00023308,2]
[392093921,1761154789037,612.18,0.00021358,2]
[392093922,1761154789488,1224.36,0.000233,2]
[392093923,1761154790173,500.0,0.00023605,2]
[392093924,1761154867665,588.8,0.00021357,2]
[392093925,1761154868062,1177.61,0.00023299,2]
[392093926,1761154946947,566.32,0.00021356,2]
[392093927,1761154947351,1132.65,0.00023298,2]
[392093928,1761155018039,5681.17177918,0.00023379,2]
[392093929,1761155020604,2619.86822082,0.00022862,2]
[392093930,1761155020623,2705.79045357,0.00022862,2]
[392093931,1761155023121,7241.5643825,0.00022862,2]
[392093932,1761155026866,544.7,0.00021545,2]
[392093933,1761155027263,1089.4,0.00023503,2]
[392093936,1761155106945,529.63,0.00021542,2]
[392093937,1761155107351,1059.26,0.000235,2]
[392093941,1761155188832,509.41,0.00021381,2]
[392093942,1761155189242,1018.81,0.00023325,2]
[392093957,1761155256930,460.00842879,0.00023379,2]
[392093958,1761155259362,1840.03371517,0.00023379,2]
[392093959,1761155261789,1617.08357073,0.00022862,2]
[392093960,1761155263918,2871.94042161,0.00022862,2]
[392093961,1761155268334,93.8338637,0.0002138,2]
[392093962,1761155268360,396.1261363,0.0002138,2]
[392093963,1761155268629,979.91,0.00023323,2]
[392093995,1761155349076,471.25,0.00021396,2]
[392093996,1761155349411,942.5,0.00023341,2]
[392094018,1761155428660,453.26,0.00021373,2]
[392094019,1761155429083,906.51,0.00023316,2]
[392094065,1761155432294,-535.93802563,0.00023675,2]
[392094067,1761155432304,-1450.51301779,0.00023746,2]
[392094069,1761155432313,-1550.94,0.00023767,10]
[392094071,1761155432324,-1200.0,0.00023768,2]
[392094073,1761155432334,-1861.13,0.00023769,10]
[392094075,1761155432343,-300.0,0.00023772,2]
[392094077,1761155432352,-300.0,0.00023772,2]
[392094079,1761155432362,-1200.0,0.00023772,2]
[392094080,1761155432371,-300.0,0.00023772,2]
[392094082,1761155432381,-500.0,0.00023773,2]
[392094084,1761155432391,-500.06375083,0.00023773,2]
[392094086,1761155432401,-500.0,0.00023773,2]
[392094088,1761155432410,-279.77522033,0.00023775,2]
[392094090,1761155432420,-50000.0,0.00023775,2]
[392094092,1761155432429,-500.0,0.00023775,2]
[392094095,1761155432438,-166.47459672,0.00023775,2]
[392094098,1761155432448,-161.11820281,0.00023775,2]
[392094101,1761155432458,-500.0,0.00023775,2]
[392094103,1761155432468,-500.0,0.00023775,2]
[392094106,1761155432477,-500.0,0.00023775,2]
[392094108,1761155432487,-156.93201907,0.00023775,2]
[392094110,1761155432496,-500.0,0.00023775,2]
[392094112,1761155432505,-300.53255293,0.00023775,2]
[392094113,1761155432515,-482.49836676,0.00023775,2]
[392094116,1761155432525,-232.56587604,0.00023775,2]
[392094118,1761155432534,-500.0,0.00023775,2]
[392094119,1761155432543,-500.0,0.00023775,2]
[392094122,1761155432552,-500.0,0.00023775,2]
[392094124,1761155432561,-500.0,0.00023775,2]
[392094136,1761155432674,-500.0,0.00023775,2]
[392094139,1761155432686,-500.0,0.00023775,2]
[392094141,1761155432695,-500.0,0.00023775,2]
[392094143,1761155432704,-500.0,0.00023775,2]
[392094145,1761155432713,-500.0,0.00023775,2]
[392094147,1761155432723,-500.0,0.00023775,2]
[392094149,1761155432733,-238.95037168,0.00023775,2]
[392094151,1761155432742,-500.0,0.00023775,2]
[392094153,1761155432751,-500.0,0.00023775,2]
[392094155,1761155432760,-500.0,0.00023775,2]
[392094157,1761155432770,-500.0,0.00023775,2]
[392094159,1761155432780,-500.0,0.00023775,2]